Workbook

Sheet Лист1
A1: Школа | C1: МБОУ "СОШ № 2" НМР РТ | F1: Согласование: | G1: должность | H1: Директор
A2: Типовое примерное меню приготавливаемых блюд | G2: фамилия | H2: Кречетова Е.М.
A3: Возрастная категория | E3: 7-11 лет | G3: дата | H3: 4 | I3: 3 | J3: 2024
H4: день | I4: месяц | J4: год
A5: Неделя | B5: День недели | C5: Прием пищи | D5: Раздел меню | E5: Блюда | F5: Вес блюда, г | G5: Белки | H5: Жиры | I5: Углеводы | J5: Калорийность | K5: № рецептуры | L5: Цена
A6: 1 | B6: 1 | C6: Завтрак | D6: гор.блюдо | E6: Котлеты домашние с гречкой | F6: 90 | G6: 8.01 | H6: 11.14 | I6: 35.71 | J6: 248
D7: гарнир | E7: Макаронные изделия (рожки) отварные с маслом сливочным | F7: 153 | G7: 5.68 | H7: 2.88 | I7: 31.96 | J7: 176.1
D8: доп. гарнир | E8: яйцо варенное | F8: 40 | G8: 5.08 | H8: 4.6 | I8: 0.28 | J8: 63
D9: напиток | E9: Чай с сахаром | F9: 200 | G9: 0.07 | H9: 0.02 | I9: 8.00 | J9: 32
D10: хлеб черн. | E10: Хлеб ржаной | F10: 20 | G10: 1.32 | H10: 0.24 | I10: 7.92 | J10: 39.6
D13: итого | F13: =SUM(F6:F12) -> 503 | G13: =SUM(G6:G12) -> 20.16 | H13: =SUM(H6:H12) -> 18.88 | I13: =SUM(I6:I12) -> 83.87 | J13: =SUM(J6:J12) -> 558.7 | L13: 80.66
A14: 1 | B14: 2 | C14: Завтрак | D14: гор.блюдо | E14: Биточки куриные Солнышко | F14: 90 | G14: 6.01 | H14: 11.53 | I14: 12.88 | J14: 183.45
D15: гарнир | E15: Каша пшеничная вязкая с маслом сливочным | F15: 153 | G15: 6.7 | H15: 4.38 | I15: 35.99 | J15: 227
D16: напиток | E16: кофейный напиток с молоком | F16: 200 | G16: 3.17 | H16: 2.68 | I16: 9.98 | J16: 60.1
D17: хлеб бел. | E17: Хлеб пшеничный | F17: 30 | G17: 2.28 | H17: 0.24 | I17: 14.76 | J17: 70.5
D18: хлеб черн. | E18: Хлеб ржаной | F18: 30 | G18: 1.98 | H18: 0.36 | I18: 11.88 | J18: 59.4
D21: итого | F21: =SUM(F14:F20) -> 503 | G21: =SUM(G14:G20) -> 20.14 | H21: =SUM(H14:H20) -> 19.19 | I21: =SUM(I14:I20) -> 85.49 | J21: =SUM(J14:J20) -> 600.45 | L21: 80.66
A22: 1 | B22: 3 | C22: Завтрак | D22: гор.блюдо | E22: Плов из куриной грудки | F22: 200 | G22: 15.42 | H22: 17.96 | I22: 38.93 | J22: 390.5
D23: фрукты | E23: Яблоко | F23: 100 | G23: 0.4 | H23: 0.4 | I23: 9.8 | J23: 47
D24: напиток | E24: Чай с сахаром и лимоном | F24: 200 | G24: 0.13 | H24: 0.02 | I24: 8.2 | J24: 34.02
D25: хлеб бел. | E25: Хлеб пшеничный | F25: 30 | G25: 2.28 | H25: 0.24 | I25: 14.76 | J25: 70.5
D26: хлеб черн. | E26: Хлеб ржаной | F26: 20 | G26: 1.32 | H26: 0.24 | I26: 7.92 | J26: 39.6
D29: итого | F29: =SUM(F22:F28) -> 550 | G29: =SUM(G22:G28) -> 19.55 | H29: =SUM(H22:H28) -> 18.86 | I29: =SUM(I22:I28) -> 79.61 | J29: =SUM(J22:J28) -> 581.62 | L29: 80.66
A30: 1 | B30: 4 | C30: Завтрак | D30: гор.блюдо | E30: Овощи тушенные с мясом | F30: 200 | G30: 14.05 | H30: 15.97 | I30: 32.8 | J30: 374.45
D31: доп. гарнир | E31: Капуста квашенная | F31: 50 | G31: 0.85 | H31: 2.5 | I31: 4.22 | J31: 42.85
D32: напиток | E32: Напиток из урюка | F32: 200 | G32: 0.75 | H32: 0.06 | I32: 15.95 | J32: 68.52
D33: хлеб бел. | E33: Хлеб пшеничный | F33: 30 | G33: 2.28 | H33: 0.24 | I33: 14.76 | J33: 70.5
D34: хлеб черн. | E34: Хлеб ржаной | F34: 30 | G34: 1.98 | H34: 0.36 | I34: 11.88 | J34: 59.4
D37: итого | F37: =SUM(F30:F36) -> 510 | G37: =SUM(G30:G36) -> 19.91 | H37: 19.13 | I37: 79.61 | J37: 615.72 | L37: 80.66
A38: 1 | B38: 5 | C38: Завтрак | D38: фрукты | E38: Яблоки | F38: 100 | G38: 0.4 | H38: 0.4 | I38: 9.8 | J38: 47
D39: хлеб бел. | E39: Хлеб пшеничный | F39: 30 | G39: 2.28 | H39: 0.24 | I39: 14.76 | J39: 70.5
D40: хлеб черн. | E40: Хлеб ржаной | F40: 30 | G40: 1.98 | H40: 0.36 | I40: 11.88 | J40: 59.4
D41: гор.блюдо | E41: Сырники из творога со сгущенным молоком | F41: 150 | G41: 15.55 | H41: 18.35 | I41: 36.03 | J41: 398.93
D42: гор.напиток | E42: Чай с сахаром | F42: 200 | G42: 0.07 | H42: 0.02 | I42: 8 | J42: 32
D45: итого | F45: =F38+F39+F40+F41+F42 -> 510 | G45: =G38+G39+G40+G41+G42 -> 20.28 | H45: 19.37 | I45: 80.47 | J45: 607.83 | L45: 80.66
A46: 1 | B46: 6 | C46: Завтрак | D46: гор.блюдо | E46: Запеканка картофельная с птицей | F46: 180 | G46: 10.58 | H46: 14.26 | I46: 12.09 | J46: 174.1
D47: напиток | E47: Напиток из сухофруктов | F47: 200 | G47: 0.7 | H47: 0.1 | I47: 22.03 | J47: 92.9
D48: сладкое | E48: Печенье | F48: 40 | G48: 2.96 | H48: 3.76 | I48: 10.84 | J48: 10.84
D49: хлеб бел. | E49: Хлеб пшеничный | F49: 40 | G49: 1.52 | H49: 0.16 | I49: 22.14 | J49: 47
D50: хлеб черн. | E50: Хлеб ржаной | F50: 40 | G50: 1.98 | H50: 0.36 | I50: 11.88 | J50: 59.4
D53: итого | F53: =SUM(F46:F52) -> 500 | G53: 19.92 | H53: 18.92 | I53: 80.48 | J53: 564.48 | L53: 80.66
A54: 2 | B54: 7 | C54: Завтрак | D54: гор.блюдо | E54: Биточки рыбные | F54: 90 | G54: 10.68 | H54: 8.98 | I54: 16.21 | J54: 170.2
D55: гарнир | E55: Макаронные изделия (рожки) отварные с маслом сливочным | F55: 153 | G55: 5.68 | H55: 2.88 | I55: 31.96 | J55: 176.1
D56: напиток | E56: Чай с сахаром, с яблоком | F56: 200 | G56: 0.11 | H56: 0.06 | I56: 8.97 | J56: 36.68
D57: хлеб | E57: Бутерброд с маслом сливочным | F57: 40 | G57: 2.36 | H57: 7.49 | I57: 14.89 | J57: 136
D58: хлеб черн. | E58: Хлеб ржаной | F58: 20 | G58: 1.32 | H58: 0.24 | I58: 7.92 | J58: 39.6
D61: итого | F61: =SUM(F54:F60) -> 503 | G61: =SUM(G54:G60) -> 20.15 | H61: =SUM(H54:H60) -> 19.65 | I61: =SUM(I54:I60) -> 79.95 | J61: =SUM(J54:J60) -> 558.58 | L61: 80.66
A62: 2 | B62: 8 | C62: Завтрак | D62: гор.блюдо | E62: Жаркое из птицы (куриных грудок) | F62: 200 | G62: 17.01 | H62: 18.47 | I62: 41.76 | J62: 473.54
D63: фрукты | E63: Яблоко | F63: 100 | G63: 0.4 | H63: 0.4 | I63: 9.8 | J63: 47
D64: напиток | E64: Чай с сахаром | F64: 200 | G64: 0.07 | H64: 0.02 | I64: 8 | J64: 32
D65: хлеб черн. | E65: Хлеб ржаной | F65: 20 | G65: 1.32 | H65: 0.24 | I65: 7.92 | J65: 39.6
D68: итого | F68: =SUM(F62:F67) -> 520 | G68: =SUM(G62:G67) -> 18.8 | H68: 19.13 | I68: 67.48 | J68: 592.14 | L68: 80.66
A69: 2 | B69: 9 | C69: Завтрак | D69: гор.блюдо | E69: Котлеты Здоровье из куриных грудок | F69: 90 | G69: 11.2 | H69: 10.96 | I69: 24.82 | J69: 229.63
D70: гарнир | E70: Каша гречневая вязкая с маслом сливочным | F70: 153 | G70: 4.6 | H70: 7.19 | I70: 20.56 | J70: 165.3
D71: напиток | E71: Чай с сахаром и лимоном | F71: 200 | G71: 0.13 | H71: 0.02 | I71: 8.2 | J71: 34.02
D72: хлеб бел. | E72: Хлеб пшеничный | F72: 30 | G72: 2.28 | H72: 0.24 | I72: 14.76 | J72: 70.5
D73: хлеб черн. | E73: Хлеб ржаной | F73: 30 | G73: 1.98 | H73: 0.36 | I73: 11.88 | J73: 59.4
D76: итого | F76: =SUM(F69:F75) -> 503 | G76: =SUM(G69:G75) -> 20.19 | H76: =SUM(H69:H75) -> 18.77 | I76: =SUM(I69:I75) -> 80.22 | J76: =SUM(J69:J75) -> 558.85 | L76: 80.66
A77: 2 | B77: 10 | C77: Завтрак | D77: гор.блюдо | E77: Тефтели мясные с геркулесом | F77: 90 | G77: 11.56 | H77: 11.01 | I77: 7.86 | J77: 159.59
D78: гарнир | E78: Пюре картофельное с маслом сливочным | F78: 153 | G78: 3.09 | H78: 6.98 | I78: 12.48 | J78: 157.55
D79: напиток | E79: Кисель | F79: 200 | G79: 0.6 | H79: 0.1 | I79: 20.2 | J79: 123.6
D80: сладкое | E80: Пряники | F80: 35 | G80: 2.1 | H80: 2.1 | I80: 9.2 | J80: 89.5
D81: хлеб бел. | E81: Хлеб пшеничный | F81: 30 | G81: 2.28 | H81: 0.24 | I81: 14.76 | J81: 70.5
D84: итого | F84: =SUM(F77:F83) -> 508 | G84: =SUM(G77:G83) -> 19.63 | H84: =SUM(H77:H83) -> 20.43 | I84: =SUM(I77:I83) -> 64.5 | J84: =SUM(J77:J83) -> 600.74 | L84: 80.66
A85: 2 | B85: 11 | C85: Завтрак | D85: гор.блюдо | E85: Гуляш из куриной грудки | F85: 100 | G85: 8.64 | H85: 9.83 | I85: 13.4 | J85: 209.39
D86: гарнир | E86: Каша пшенная вязкая | F86: 150 | G86: 4.18 | H86: 5.01 | I86: 23.94 | J86: 157.5
D87: фрукты | E87: Яблоко | F87: 100 | G87: 0.4 | H87: 0.4 | I87: 9.8 | J87: 47
D88: напиток | E88: Какао с молоком | F88: 200 | G88: 4.08 | H88: 3.54 | I88: 2.61 | J88: 58.6
D89: хлеб бел. | E89: Хлеб пшеничный | F89: 30 | G89: 2.28 | H89: 0.24 | I89: 14.76 | J89: 70.5
D91: итого | F91: =SUM(F85:F89) -> 580 | G91: =SUM(G84:G89) -> 39.21 | H91: =SUM(H84:H89) -> 39.45 | I91: =SUM(I84:I89) -> 129.01 | J91: =SUM(J84:J89) -> 1143.73 | L91: =SUM(L84:L89) -> 80.66
A92: 2 | B92: 12 | C92: Завтрак | D92: гор.блюдо | E92: Котлета рубленная из куринной грудки | F92: 90 | G92: 9.7 | H92: 11.63 | I92: 14.99 | J92: 209.39
D93: гарнир | E93: Пюре гороховое с сливочным маслом | F93: 153 | G93: 6.09 | H93: 8.26 | I93: 30.06 | J93: 244.95
D94: напиток | E94: Чай с сахаром | F94: 200 | G94: 0.07 | H94: 0.02 | I94: 8 | J94: 32
D95: хлеб черн. | E95: Хлеб ржаной | F95: 30 | G95: 1.98 | H95: 0.36 | I95: 11.88 | J95: 59.4
D96: хлеб бел. | E96: Хлеб пшеничный | F96: 30 | G96: 2.28 | H96: 0.24 | I96: 14.76 | J96: 70.5
D98: итого | F98: =SUM(F92:F96) -> 503 | G98: =SUM(G91:G96) -> 59.33 | H98: =SUM(H91:H96) -> 59.96 | I98: =SUM(I91:I96) -> 208.7 | J98: =SUM(J91:J96) -> 1759.97 | L98: =SUM(L91:L96) -> 80.66
C99: Среднее значение за период: | F99: =(F13+F21+F29+F37+F45+F53+F61+F68+F76+F84+F91+F98)/12 -> 516 | G99: 25 | H99: 24 | I99: 93 | J99: 729 | K99: 0
